[Event "Titled Tuesday Blitz November 22 Late 2022"]
[White "Melkumyan, Hrant"]
[Black "Kopylov, Alexander A."]
[WhiteFideId "13302485"]
[BlackFideId "4164857"]
[WhiteElo "2604"]
[BlackElo "2436"]
[Result "1-0"]
[Round "10"]
[TimeControl "180+1"]
[Date "2022.11.22"]
[WhiteClock "0:00:31"]
[BlackClock "0:00:16"]

1. c4 {[%clk 0:03:00]}  Nf6 {[%clk 0:03:00]} 2. Nf3 {[%clk 0:03:00]}  e6 {[%clk 0:03:00]} 3. Nc3 {[%clk 0:02:56]}  d5 {[%clk 0:03:00]} 4. e3 {[%clk 0:02:57]}  a6 {[%clk 0:02:57]} 5. b3 {[%clk 0:02:55]}  c5 {[%clk 0:02:50]} 6. cxd5 {[%clk 0:02:55]}  Nxd5 {[%clk 0:02:49]} 7. Bb2 {[%clk 0:02:54]}  Nf6 {[%clk 0:02:39]} 8. Be2 {[%clk 0:02:42]}  Be7 {[%clk 0:02:38]} 9. O-O {[%clk 0:02:42]}  O-O {[%clk 0:02:38]} 10. d4 {[%clk 0:02:42]}  cxd4 {[%clk 0:02:38]} 11. Nxd4 {[%clk 0:02:42]}  Nbd7 {[%clk 0:02:36]} 12. Rc1 {[%clk 0:02:39]}  Ne5 {[%clk 0:02:36]} 13. Qc2 {[%clk 0:02:39]}  b5 {[%clk 0:02:29]} 14. Rfd1 {[%clk 0:02:29]}  Qb6 {[%clk 0:02:28]} 15. Ne4 {[%clk 0:02:21]}  Bb7 {[%clk 0:02:28]} 16. Nc5 {[%clk 0:02:19]}  Rac8 {[%clk 0:02:25]} 17. b4 {[%clk 0:02:19]}  Nc4 {[%clk 0:02:17]} 18. Bxc4 {[%clk 0:02:07]}  Bxc5 {[%clk 0:02:16]} 19. bxc5 {[%clk 0:02:07]}  Rxc5 {[%clk 0:02:16]} 20. Qb3 {[%clk 0:02:08]}  Rxc4 {[%clk 0:01:52]} 21. Rxc4 {[%clk 0:02:06]}  Bd5 {[%clk 0:01:53]} 22. Rdc1 {[%clk 0:01:23]}  Qb8 {[%clk 0:01:04]} 23. Nc6 {[%clk 0:01:19]}  Qe8 {[%clk 0:00:58]} 24. Ne7+ {[%clk 0:01:04]}  Qxe7 {[%clk 0:00:56]} 25. Qb4 {[%clk 0:00:55]}  Qxb4 {[%clk 0:00:46]} 26. Rxb4 {[%clk 0:00:56]}  Bxa2 {[%clk 0:00:44]} 27. Ra1 {[%clk 0:00:55]}  Bc4 {[%clk 0:00:44]} 28. Bxf6 {[%clk 0:00:51]}  gxf6 {[%clk 0:00:45]} 29. Rxa6 {[%clk 0:00:52]}  Rd8 {[%clk 0:00:45]} 30. h3 {[%clk 0:00:52]}  Rd2 {[%clk 0:00:37]} 31. Rb1 {[%clk 0:00:51]}  Kg7 {[%clk 0:00:36]} 32. Rb6 {[%clk 0:00:51]}  Kg6 {[%clk 0:00:34]} 33. Ra1 {[%clk 0:00:51]}  Rb2 {[%clk 0:00:26]} 34. Rc1 {[%clk 0:00:48]}  Ra2 {[%clk 0:00:25]} 35. Rd1 {[%clk 0:00:48]}  Rb2 {[%clk 0:00:22]} 36. Rd4 {[%clk 0:00:48]}  Ra2 {[%clk 0:00:21]} 37. Rg4+ {[%clk 0:00:48]}  Kf5 {[%clk 0:00:21]} 38. Rf4+ {[%clk 0:00:46]}  Kg6 {[%clk 0:00:20]} 39. Rb8 {[%clk 0:00:47]}  f5 {[%clk 0:00:15]} 40. Rg8+ {[%clk 0:00:46]}  Kf6 {[%clk 0:00:15]} 41. Rh4 {[%clk 0:00:46]}  Rc2 {[%clk 0:00:16]} 42. Rxh7 {[%clk 0:00:30]}  b4 {[%clk 0:00:16]} 43. Rf8 {[%clk 0:00:30]}  b3 {[%clk 0:00:16]} 44. Rhxf7+ {[%clk 0:00:30]}  Ke5 {[%clk 0:00:16]} 45. Rb7 {[%clk 0:00:31]}  b2 {[%clk 0:00:16]} 46. Rfb8 {[%clk 0:00:31]} 1-0


[Site "https://www.chess.com"]

[Event "Titled Tuesday Blitz November 22 Late 2022"]
[White "Mgeladze, Tamaz"]
[Black "Mikhalsky, Vladimir"]
[WhiteFideId "13601202"]
[BlackFideId "14144352"]
[WhiteElo "2288"]
[BlackElo "2271"]
[Result "1-0"]
[Round "10"]
[TimeControl "180+1"]
[Date "2022.11.22"]
[WhiteClock "0:01:15"]
[BlackClock "0:00:09"]

1. c4 {[%clk 0:03:00]}  c5 {[%clk 0:02:59]} 2. g3 {[%clk 0:03:00]}  Nf6 {[%clk 0:02:58]} 3. Bg2 {[%clk 0:03:00]}  d5 {[%clk 0:02:59]} 4. cxd5 {[%clk 0:03:01]}  Nxd5 {[%clk 0:02:58]} 5. Nf3 {[%clk 0:03:02]}  Nc6 {[%clk 0:02:58]} 6. O-O {[%clk 0:03:02]}  e5 {[%clk 0:02:56]} 7. Nc3 {[%clk 0:03:02]}  Nc7 {[%clk 0:02:56]} 8. Qa4 {[%clk 0:03:02]}  Bd7 {[%clk 0:02:54]} 9. Qe4 {[%clk 0:03:02]}  f5 {[%clk 0:02:44]} 10. Qb1 {[%clk 0:02:59]}  e4 {[%clk 0:02:39]} 11. Ne1 {[%clk 0:02:57]}  Be7 {[%clk 0:02:23]} 12. d3 {[%clk 0:02:56]}  exd3 {[%clk 0:02:23]} 13. Nxd3 {[%clk 0:02:57]}  O-O {[%clk 0:02:22]} 14. Be3 {[%clk 0:02:52]}  b6 {[%clk 0:02:18]} 15. Rd1 {[%clk 0:02:51]}  Qe8 {[%clk 0:02:16]} 16. Nf4 {[%clk 0:02:48]}  Rd8 {[%clk 0:02:02]} 17. Qc2 {[%clk 0:02:47]}  Bf6 {[%clk 0:01:58]} 18. Rd6 {[%clk 0:02:40]}  Nd4 {[%clk 0:01:53]} 19. Bxd4 {[%clk 0:02:38]}  Bxd4 {[%clk 0:01:50]} 20. e3 {[%clk 0:02:32]}  Be5 {[%clk 0:01:49]} 21. Rd2 {[%clk 0:02:25]}  Bc8 {[%clk 0:01:28]} 22. Rxd8 {[%clk 0:02:21]}  Qxd8 {[%clk 0:01:27]} 23. Qb3+ {[%clk 0:02:21]}  Kh8 {[%clk 0:01:25]} 24. Rd1 {[%clk 0:02:22]}  Qe7 {[%clk 0:01:21]} 25. Ncd5 {[%clk 0:02:21]}  Nxd5 {[%clk 0:01:21]} 26. Nxd5 {[%clk 0:02:17]}  Qf7 {[%clk 0:01:19]} 27. Nc3 {[%clk 0:02:11]}  Be6 {[%clk 0:01:07]} 28. Bd5 {[%clk 0:02:06]}  Bxd5 {[%clk 0:01:07]} 29. Qxd5 {[%clk 0:02:05]}  Qxd5 {[%clk 0:01:06]} 30. Rxd5 {[%clk 0:02:06]}  Bxc3 {[%clk 0:00:55]} 31. bxc3 {[%clk 0:02:07]}  h6 {[%clk 0:00:43]} 32. h4 {[%clk 0:02:06]}  Rf6 {[%clk 0:00:31]} 33. Rd7 {[%clk 0:02:06]}  a6 {[%clk 0:00:31]} 34. Kg2 {[%clk 0:02:02]}  b5 {[%clk 0:00:30]} 35. Kf3 {[%clk 0:02:01]}  g5 {[%clk 0:00:24]} 36. h5 {[%clk 0:01:56]}  Kg8 {[%clk 0:00:23]} 37. Rc7 {[%clk 0:01:53]}  c4 {[%clk 0:00:22]} 38. a4 {[%clk 0:01:52]}  Rb6 {[%clk 0:00:20]} 39. a5 {[%clk 0:01:48]}  Rf6 {[%clk 0:00:18]} 40. Rb7 {[%clk 0:01:44]}  Kf8 {[%clk 0:00:18]} 41. Ra7 {[%clk 0:01:41]}  Ke8 {[%clk 0:00:18]} 42. Ke2 {[%clk 0:01:34]}  Kd8 {[%clk 0:00:18]} 43. f3 {[%clk 0:01:34]}  Re6 {[%clk 0:00:18]} 44. g4 {[%clk 0:01:31]}  fxg4 {[%clk 0:00:15]} 45. fxg4 {[%clk 0:01:32]}  Ke8 {[%clk 0:00:15]} 46. Kf3 {[%clk 0:01:31]}  Kf8 {[%clk 0:00:15]} 47. e4 {[%clk 0:01:32]}  Rf6+ {[%clk 0:00:15]} 48. Ke3 {[%clk 0:01:32]}  Rd6 {[%clk 0:00:16]} 49. e5 {[%clk 0:01:24]}  Rd3+ {[%clk 0:00:15]} 50. Ke4 {[%clk 0:01:25]}  Rxc3 {[%clk 0:00:15]} 51. Rxa6 {[%clk 0:01:26]}  Kg7 {[%clk 0:00:15]} 52. Rg6+ {[%clk 0:01:25]}  Kh7 {[%clk 0:00:16]} 53. Rb6 {[%clk 0:01:25]}  Rb3 {[%clk 0:00:14]} 54. a6 {[%clk 0:01:25]}  Ra3 {[%clk 0:00:13]} 55. Rb7+ {[%clk 0:01:24]}  Kg8 {[%clk 0:00:13]} 56. Rxb5 {[%clk 0:01:24]}  Rxa6 {[%clk 0:00:12]} 57. Rc5 {[%clk 0:01:24]}  Ra4 {[%clk 0:00:11]} 58. Kf5 {[%clk 0:01:25]}  c3 {[%clk 0:00:12]} 59. Rxc3 {[%clk 0:01:24]}  Rf4+ {[%clk 0:00:12]} 60. Kg6 {[%clk 0:01:25]}  Kf8 {[%clk 0:00:12]} 61. Rg3 {[%clk 0:01:19]}  Ke7 {[%clk 0:00:11]} 62. Kxh6 {[%clk 0:01:19]}  Ke6 {[%clk 0:00:10]} 63. Kxg5 {[%clk 0:01:19]}  Re4 {[%clk 0:00:11]} 64. Rf3 {[%clk 0:01:17]}  Kxe5 {[%clk 0:00:10]} 65. Rf5+ {[%clk 0:01:17]}  Ke6 {[%clk 0:00:11]} 66. h6 {[%clk 0:01:18]}  Re1 {[%clk 0:00:10]} 67. h7 {[%clk 0:01:17]}  Rh1 {[%clk 0:00:10]} 68. Kg6 {[%clk 0:01:18]}  Ke7 {[%clk 0:00:10]} 69. Rh5 {[%clk 0:01:17]}  Rg1 {[%clk 0:00:09]} 70. h8=Q {[%clk 0:01:15]}  Rxg4+ {[%clk 0:00:09]} 71. Rg5 {[%clk 0:01:15]} 1-0


[Site "https://www.chess.com"]

[Event "Titled Tuesday Blitz November 22 Late 2022"]
[White "Nasuta, Grzegorz"]
[Black "Martinez Alcantara, Jose Eduardo"]
[WhiteFideId "1141686"]
[BlackFideId "3805662"]
[WhiteElo "2440"]
[BlackElo "2705"]
[Result "0-1"]
[Round "10"]
[TimeControl "180+1"]
[Date "2022.11.22"]
[WhiteClock "0:00:02"]
[BlackClock "0:01:10"]

1. e4 {[%clk 0:03:00]}  c5 {[%clk 0:02:59]} 2. Nf3 {[%clk 0:03:01]}  d6 {[%clk 0:03:00]} 3. d4 {[%clk 0:03:02]}  cxd4 {[%clk 0:03:01]} 4. Nxd4 {[%clk 0:03:02]}  a6 {[%clk 0:03:02]} 5. Nc3 {[%clk 0:03:01]}  e6 {[%clk 0:03:02]} 6. Be3 {[%clk 0:03:00]}  b5 {[%clk 0:03:03]} 7. a4 {[%clk 0:02:57]}  b4 {[%clk 0:03:03]} 8. Na2 {[%clk 0:02:58]}  Nf6 {[%clk 0:03:03]} 9. Nxb4 {[%clk 0:02:46]}  Bb7 {[%clk 0:03:03]} 10. Be2 {[%clk 0:02:36]}  d5 {[%clk 0:03:00]} 11. c3 {[%clk 0:02:23]}  dxe4 {[%clk 0:03:00]} 12. a5 {[%clk 0:02:12]}  Qc8 {[%clk 0:02:59]} 13. O-O {[%clk 0:02:09]}  Be7 {[%clk 0:02:58]} 14. Qa4+ {[%clk 0:02:07]}  Nfd7 {[%clk 0:02:59]} 15. Rac1 {[%clk 0:01:50]}  O-O {[%clk 0:02:58]} 16. Rfd1 {[%clk 0:01:50]}  Nc5 {[%clk 0:02:55]} 17. Qa2 {[%clk 0:01:49]}  Nbd7 {[%clk 0:02:55]} 18. Nbc2 {[%clk 0:01:37]}  Nd3 {[%clk 0:02:53]} 19. Bxd3 {[%clk 0:01:33]}  exd3 {[%clk 0:02:54]} 20. Rxd3 {[%clk 0:01:28]}  Ne5 {[%clk 0:02:54]} 21. Rdd1 {[%clk 0:01:28]}  Ng4 {[%clk 0:02:52]} 22. h3 {[%clk 0:01:20]}  Nf6 {[%clk 0:02:52]} 23. c4 {[%clk 0:01:12]}  e5 {[%clk 0:02:48]} 24. Ne2 {[%clk 0:01:08]}  Ne4 {[%clk 0:02:41]} 25. b4 {[%clk 0:01:04]}  Qe6 {[%clk 0:02:40]} 26. Ne1 {[%clk 0:01:00]}  Qg6 {[%clk 0:02:39]} 27. f3 {[%clk 0:00:59]}  Nd6 {[%clk 0:02:38]} 28. c5 {[%clk 0:00:53]}  Nf5 {[%clk 0:02:38]} 29. Bf2 {[%clk 0:00:49]}  e4 {[%clk 0:02:38]} 30. Nf4 {[%clk 0:00:45]}  Qh6 {[%clk 0:02:38]} 31. Nd5 {[%clk 0:00:45]}  Bg5 {[%clk 0:02:38]} 32. fxe4 {[%clk 0:00:42]}  Bxc1 {[%clk 0:02:29]} 33. exf5 {[%clk 0:00:42]}  Rae8 {[%clk 0:02:26]} 34. Nf3 {[%clk 0:00:37]}  Bf4 {[%clk 0:02:21]} 35. Qc4 {[%clk 0:00:28]}  Bb8 {[%clk 0:02:19]} 36. Qd3 {[%clk 0:00:17]}  Kh8 {[%clk 0:02:15]} 37. f6 {[%clk 0:00:13]}  g6 {[%clk 0:02:04]} 38. Ne7 {[%clk 0:00:11]}  Qf4 {[%clk 0:02:01]} 39. Qd4 {[%clk 0:00:12]}  Bxf3 {[%clk 0:01:42]} 40. Qxf4 {[%clk 0:00:11]}  Bxf4 {[%clk 0:01:43]} 41. gxf3 {[%clk 0:00:12]}  Rb8 {[%clk 0:01:44]} 42. Rb1 {[%clk 0:00:11]}  Bg5 {[%clk 0:01:28]} 43. Bd4 {[%clk 0:00:11]}  Rbd8 {[%clk 0:01:29]} 44. Be5 {[%clk 0:00:11]}  Be3+ {[%clk 0:01:24]} 45. Kg2 {[%clk 0:00:11]}  Rd2+ {[%clk 0:01:25]} 46. Kg3 {[%clk 0:00:11]}  h5 {[%clk 0:01:14]} 47. f4 {[%clk 0:00:11]}  Rfd8 {[%clk 0:01:09]} 48. Kf3 {[%clk 0:00:10]}  R8d3 {[%clk 0:01:09]} 49. Ke4 {[%clk 0:00:10]}  Bf2 {[%clk 0:01:10]} 50. Nd5 {[%clk 0:00:07]}  Rxd5 {[%clk 0:01:09]} 51. c6 {[%clk 0:00:05]}  R5d3 {[%clk 0:01:10]} 52. f5 {[%clk 0:00:05]}  g5 {[%clk 0:01:10]} 53. Bf4 {[%clk 0:00:03]}  Rd4+ {[%clk 0:01:09]} 54. Kf3 {[%clk 0:00:02]}  Rxf4+ {[%clk 0:01:10]} 0-1


[Site "https://www.chess.com"]

[Event "Titled Tuesday Blitz November 22 Late 2022"]
[White "Necromon"]
[Black "Rose, Felix"]
[BlackFideId "5105722"]
[WhiteElo "2477"]
[BlackElo "2039"]
[Result "1/2-1/2"]
[Round "10"]
[TimeControl "180+1"]
[Date "2022.11.23"]
[WhiteClock "0:00:12"]
[BlackClock "0:00:12"]

1. Nf3 {[%clk 0:03:00]}  d5 {[%clk 0:02:59]} 2. g3 {[%clk 0:03:01]}  Nf6 {[%clk 0:02:59]} 3. Bg2 {[%clk 0:03:01]}  g6 {[%clk 0:02:57]} 4. O-O {[%clk 0:03:00]}  Bg7 {[%clk 0:02:57]} 5. c4 {[%clk 0:03:01]}  dxc4 {[%clk 0:02:58]} 6. Qa4+ {[%clk 0:02:58]}  Nbd7 {[%clk 0:02:55]} 7. Qxc4 {[%clk 0:02:58]}  a6 {[%clk 0:02:56]} 8. d4 {[%clk 0:02:58]}  b5 {[%clk 0:02:54]} 9. Qd3 {[%clk 0:02:57]}  Bb7 {[%clk 0:02:52]} 10. Nbd2 {[%clk 0:02:39]}  c5 {[%clk 0:02:49]} 11. dxc5 {[%clk 0:02:26]}  Nxc5 {[%clk 0:02:49]} 12. Qa3 {[%clk 0:02:25]}  Rc8 {[%clk 0:02:36]} 13. Nb3 {[%clk 0:02:17]}  Nxb3 {[%clk 0:02:15]} 14. Qxb3 {[%clk 0:02:18]}  O-O {[%clk 0:02:09]} 15. Be3 {[%clk 0:02:09]}  Qd5 {[%clk 0:02:00]} 16. Qa3 {[%clk 0:01:53]}  Rfd8 {[%clk 0:01:45]} 17. Rac1 {[%clk 0:01:31]}  Rxc1 {[%clk 0:01:37]} 18. Rxc1 {[%clk 0:01:29]}  Ng4 {[%clk 0:01:12]} 19. Qxe7 {[%clk 0:01:03]}  Nxe3 {[%clk 0:00:31]} 20. Qxe3 {[%clk 0:01:02]}  Bxb2 {[%clk 0:00:30]} 21. Rf1 {[%clk 0:00:46]}  Qxa2 {[%clk 0:00:24]} 22. Qb6 {[%clk 0:00:28]}  Rd7 {[%clk 0:00:17]} 23. Bh3 {[%clk 0:00:20]}  f5 {[%clk 0:00:15]} 24. Bg2 {[%clk 0:00:15]}  Bg7 {[%clk 0:00:14]} 25. Ng5 {[%clk 0:00:13]}  Bxg2 {[%clk 0:00:14]} 26. Kxg2 {[%clk 0:00:13]}  Qd5+ {[%clk 0:00:14]} 27. Kg1 {[%clk 0:00:14]}  Qd6 {[%clk 0:00:13]} 28. Qe3 {[%clk 0:00:11]}  h6 {[%clk 0:00:13]} 29. Nf3 {[%clk 0:00:11]}  Re7 {[%clk 0:00:13]} 30. Qb3+ {[%clk 0:00:11]}  Qe6 {[%clk 0:00:13]} 31. Qa3 {[%clk 0:00:11]}  Qxe2 {[%clk 0:00:11]} 32. Re1 {[%clk 0:00:12]}  Qxe1+ {[%clk 0:00:10]} 33. Nxe1 {[%clk 0:00:12]}  Rxe1+ {[%clk 0:00:10]} 34. Kg2 {[%clk 0:00:13]}  Re6 {[%clk 0:00:11]} 35. Qb3 {[%clk 0:00:12]}  Kf7 {[%clk 0:00:12]} 36. h3 {[%clk 0:00:12]}  Bd4 {[%clk 0:00:12]} 37. g4 {[%clk 0:00:12]}  fxg4 {[%clk 0:00:12]} 38. hxg4 {[%clk 0:00:13]}  Ke7 {[%clk 0:00:12]} 39. f4 {[%clk 0:00:13]}  Re2+ {[%clk 0:00:11]} 40. Kh1 {[%clk 0:00:14]}  Re1+ {[%clk 0:00:11]} 41. Kh2 {[%clk 0:00:13]}  Re2+ {[%clk 0:00:11]} 42. Kh1 {[%clk 0:00:14]}  Re1+ {[%clk 0:00:12]} 43. Kh2 {[%clk 0:00:14]}  Re2+ {[%clk 0:00:12]} 44. Kh1 {[%clk 0:00:12]} 1/2-1/2


[Site "https://www.chess.com"]

[Event "Titled Tuesday Blitz November 22 Late 2022"]
[White "Perez Cruz, Adianet"]
[Black "Vargas, Mauricio"]
[WhiteFideId "3510115"]
[BlackFideId "4404572"]
[WhiteElo "2054"]
[BlackElo "2025"]
[Result "1-0"]
[Round "10"]
[TimeControl "180+1"]
[Date "2022.11.23"]
[WhiteClock "0:01:13"]
[BlackClock "0:00:01"]

1. d4 {[%clk 0:03:00]}  d5 {[%clk 0:02:52]} 2. Nf3 {[%clk 0:02:58]}  c6 {[%clk 0:02:50]} 3. Bf4 {[%clk 0:02:53]}  Bg4 {[%clk 0:02:48]} 4. c3 {[%clk 0:02:53]}  Nd7 {[%clk 0:02:46]} 5. Nbd2 {[%clk 0:02:54]}  e6 {[%clk 0:02:33]} 6. h3 {[%clk 0:02:54]}  Bf5 {[%clk 0:02:32]} 7. e3 {[%clk 0:02:47]}  f6 {[%clk 0:02:25]} 8. c4 {[%clk 0:02:43]}  Ne7 {[%clk 0:02:24]} 9. Be2 {[%clk 0:02:33]}  Nc8 {[%clk 0:02:22]} 10. c5 {[%clk 0:02:18]}  h6 {[%clk 0:02:15]} 11. O-O {[%clk 0:02:18]}  g5 {[%clk 0:02:15]} 12. Bh2 {[%clk 0:02:18]}  g4 {[%clk 0:02:08]} 13. hxg4 {[%clk 0:02:16]}  Bxg4 {[%clk 0:02:07]} 14. Qb3 {[%clk 0:02:11]}  b5 {[%clk 0:02:03]} 15. cxb6 {[%clk 0:02:01]}  Ndxb6 {[%clk 0:01:59]} 16. Rac1 {[%clk 0:02:00]}  Qd7 {[%clk 0:01:15]} 17. Bd3 {[%clk 0:01:52]}  Ne7 {[%clk 0:01:04]} 18. Qc2 {[%clk 0:01:47]}  Rg8 {[%clk 0:01:00]} 19. Kh1 {[%clk 0:01:46]}  O-O-O {[%clk 0:00:48]} 20. Ba6+ {[%clk 0:01:28]}  Qb7 {[%clk 0:00:38]} 21. Bxb7+ {[%clk 0:01:28]}  Kxb7 {[%clk 0:00:38]} 22. a4 {[%clk 0:01:25]}  Rc8 {[%clk 0:00:19]} 23. a5 {[%clk 0:01:25]}  Nd7 {[%clk 0:00:16]} 24. Nb3 {[%clk 0:01:23]}  Bf5 {[%clk 0:00:13]} 25. a6+ {[%clk 0:01:18]}  Kxa6 {[%clk 0:00:01]} 26. Nc5+ {[%clk 0:01:12]}  Nxc5 {[%clk 0:00:01]} 27. Qxc5 {[%clk 0:01:13]}  Kb7 {[%clk 0:00:01]} 28. Ra1 {[%clk 0:01:13]} 1-0


[Site "https://www.chess.com"]

[Event "Titled Tuesday Blitz November 22 Late 2022"]
[White "Petrovic, Aleksa"]
[Black "Bogaudinov, Rushan"]
[WhiteFideId "967629"]
[BlackFideId "4129288"]
[WhiteElo "2224"]
[BlackElo "1997"]
[Result "0-1"]
[Round "10"]
[TimeControl "180+1"]
[Date "2022.11.23"]
[WhiteClock "0:00:06"]
[BlackClock "0:00:12"]

1. d4 {[%clk 0:02:59]}  Nf6 {[%clk 0:02:57]} 2. c4 {[%clk 0:02:59]}  e6 {[%clk 0:02:56]} 3. Nf3 {[%clk 0:02:58]}  d5 {[%clk 0:02:56]} 4. Nc3 {[%clk 0:02:57]}  dxc4 {[%clk 0:02:55]} 5. e3 {[%clk 0:02:57]}  a6 {[%clk 0:02:54]} 6. a4 {[%clk 0:02:57]}  c5 {[%clk 0:02:54]} 7. Bxc4 {[%clk 0:02:58]}  Be7 {[%clk 0:02:51]} 8. O-O {[%clk 0:02:57]}  O-O {[%clk 0:02:51]} 9. Qe2 {[%clk 0:02:55]}  Nc6 {[%clk 0:02:51]} 10. Rd1 {[%clk 0:02:54]}  Qc7 {[%clk 0:02:46]} 11. b3 {[%clk 0:02:53]}  Rd8 {[%clk 0:02:38]} 12. Bb2 {[%clk 0:02:52]}  Na5 {[%clk 0:02:34]} 13. Rac1 {[%clk 0:02:49]}  cxd4 {[%clk 0:02:29]} 14. exd4 {[%clk 0:02:44]}  Qf4 {[%clk 0:02:15]} 15. Ne5 {[%clk 0:02:23]}  Bd7 {[%clk 0:02:05]} 16. Rd3 {[%clk 0:02:15]}  Nxc4 {[%clk 0:01:57]} 17. bxc4 {[%clk 0:02:12]}  Bc6 {[%clk 0:01:55]} 18. Nxc6 {[%clk 0:02:09]}  bxc6 {[%clk 0:01:55]} 19. Rcd1 {[%clk 0:02:07]}  Rab8 {[%clk 0:01:44]} 20. Bc1 {[%clk 0:01:51]}  Qg4 {[%clk 0:01:38]} 21. f3 {[%clk 0:01:42]}  Qg6 {[%clk 0:01:36]} 22. d5 {[%clk 0:01:37]}  cxd5 {[%clk 0:01:31]} 23. cxd5 {[%clk 0:01:37]}  Bc5+ {[%clk 0:01:22]} 24. Be3 {[%clk 0:01:35]}  Bxe3+ {[%clk 0:01:22]} 25. Qxe3 {[%clk 0:01:31]}  Nxd5 {[%clk 0:01:15]} 26. Nxd5 {[%clk 0:01:30]}  exd5 {[%clk 0:01:16]} 27. Rxd5 {[%clk 0:01:24]}  Rxd5 {[%clk 0:01:09]} 28. Rxd5 {[%clk 0:01:25]}  Rb1+ {[%clk 0:01:06]} 29. Kf2 {[%clk 0:01:24]}  h5 {[%clk 0:00:58]} 30. a5 {[%clk 0:00:55]}  Rb2+ {[%clk 0:00:55]} 31. Rd2 {[%clk 0:00:54]}  Rb5 {[%clk 0:00:54]} 32. Qc3 {[%clk 0:00:44]}  h4 {[%clk 0:00:43]} 33. Qd4 {[%clk 0:00:39]}  Qg5 {[%clk 0:00:31]} 34. Qd8+ {[%clk 0:00:35]}  Kh7 {[%clk 0:00:23]} 35. Qxg5 {[%clk 0:00:34]}  Rxg5 {[%clk 0:00:24]} 36. Ra2 {[%clk 0:00:33]}  Rb5 {[%clk 0:00:21]} 37. g3 {[%clk 0:00:30]}  hxg3+ {[%clk 0:00:19]} 38. hxg3 {[%clk 0:00:31]}  Kg6 {[%clk 0:00:20]} 39. f4 {[%clk 0:00:30]}  Kf5 {[%clk 0:00:20]} 40. Ra3 {[%clk 0:00:23]}  Kg4 {[%clk 0:00:20]} 41. Ke3 {[%clk 0:00:15]}  Kxg3 {[%clk 0:00:19]} 42. Ke4+ {[%clk 0:00:15]}  Kg4 {[%clk 0:00:19]} 43. Ra1 {[%clk 0:00:16]}  Kh5 {[%clk 0:00:18]} 44. Rh1+ {[%clk 0:00:15]}  Kg6 {[%clk 0:00:18]} 45. Rg1+ {[%clk 0:00:15]}  Kf6 {[%clk 0:00:18]} 46. Ra1 {[%clk 0:00:15]}  Rb4+ {[%clk 0:00:18]} 47. Kf3 {[%clk 0:00:15]}  Kf5 {[%clk 0:00:19]} 48. Rc1 {[%clk 0:00:15]}  Rxf4+ {[%clk 0:00:19]} 49. Ke3 {[%clk 0:00:15]}  Ra4 {[%clk 0:00:18]} 50. Rc5+ {[%clk 0:00:15]}  Kg4 {[%clk 0:00:17]} 51. Rc7 {[%clk 0:00:14]}  Rf4 {[%clk 0:00:14]} 52. Rc6 {[%clk 0:00:14]}  g5 {[%clk 0:00:14]} 53. Rxa6 {[%clk 0:00:13]}  f5 {[%clk 0:00:14]} 54. Ra8 {[%clk 0:00:13]}  Ra4 {[%clk 0:00:14]} 55. a6 {[%clk 0:00:13]}  f4+ {[%clk 0:00:14]} 56. Ke2 {[%clk 0:00:13]}  Kg3 {[%clk 0:00:14]} 57. a7 {[%clk 0:00:13]}  f3+ {[%clk 0:00:14]} 58. Ke3 {[%clk 0:00:12]}  Ra3+ {[%clk 0:00:13]} 59. Ke4 {[%clk 0:00:11]}  f2 {[%clk 0:00:13]} 60. Rf8 {[%clk 0:00:05]}  Rxa7 {[%clk 0:00:12]} 61. Ke3 {[%clk 0:00:05]}  Re7+ {[%clk 0:00:12]} 62. Kd2 {[%clk 0:00:06]}  Kg2 {[%clk 0:00:12]} 0-1


[Site "https://www.chess.com"]

[Event "Titled Tuesday Blitz November 22 Late 2022"]
[White "Pinheiro, Iung Alicio de O."]
[Black "Baltaci, Ismail Tarik"]
[WhiteFideId "2104350"]
[BlackFideId "6365213"]
[WhiteElo "2283"]
[BlackElo "2352"]
[Result "1-0"]
[Round "10"]
[TimeControl "180+1"]
[Date "2022.11.23"]
[WhiteClock "0:00:52"]
[BlackClock "0:00:23"]

1. e4 {[%clk 0:02:59]}  c5 {[%clk 0:02:59]} 2. Nf3 {[%clk 0:02:59]}  g6 {[%clk 0:02:59]} 3. h4 {[%clk 0:02:58]}  h6 {[%clk 0:02:55]} 4. Bc4 {[%clk 0:02:53]}  Bg7 {[%clk 0:02:55]} 5. c3 {[%clk 0:02:52]}  e6 {[%clk 0:02:49]} 6. e5 {[%clk 0:02:45]}  d5 {[%clk 0:02:44]} 7. Bb5+ {[%clk 0:02:32]}  Bd7 {[%clk 0:02:43]} 8. a4 {[%clk 0:02:29]}  Ne7 {[%clk 0:02:31]} 9. d4 {[%clk 0:02:28]}  O-O {[%clk 0:02:27]} 10. Bd3 {[%clk 0:02:14]}  cxd4 {[%clk 0:02:26]} 11. h5 {[%clk 0:02:08]}  Nf5 {[%clk 0:01:45]} 12. g4 {[%clk 0:01:49]}  Ne7 {[%clk 0:01:45]} 13. hxg6 {[%clk 0:01:47]}  Nxg6 {[%clk 0:01:46]} 14. Bxh6 {[%clk 0:01:44]}  Bxh6 {[%clk 0:01:47]} 15. Rxh6 {[%clk 0:01:44]}  Kg7 {[%clk 0:01:48]} 16. Qd2 {[%clk 0:01:37]}  Rh8 {[%clk 0:01:46]} 17. g5 {[%clk 0:01:36]}  dxc3 {[%clk 0:01:40]} 18. Nxc3 {[%clk 0:01:35]}  Nc6 {[%clk 0:01:41]} 19. Bxg6 {[%clk 0:01:27]}  fxg6 {[%clk 0:01:40]} 20. O-O-O {[%clk 0:01:24]}  Ne7 {[%clk 0:01:37]} 21. Rdh1 {[%clk 0:01:23]}  Qc7 {[%clk 0:01:32]} 22. Qf4 {[%clk 0:01:08]}  Nf5 {[%clk 0:01:32]} 23. Nd4 {[%clk 0:01:07]}  Raf8 {[%clk 0:01:19]} 24. Nxf5+ {[%clk 0:01:00]}  Rxf5 {[%clk 0:00:28]} 25. Rxh8 {[%clk 0:00:52]}  Rxf4 {[%clk 0:00:23]} 26. R1h7# {[%clk 0:00:52]} 1-0


[Site "https://www.chess.com"]